[Event "Early-Titled-Tuesday-Blitz-January-23-2024"]
[Site "Chess.com"]
[Date "2024.01.23"]
[Round "2"]
[White "chito89"]
[Black "CrimeFightingSpider07"]
[Result "1-0"]
[WhiteElo "2899"]
[BlackElo "2464"]
[TimeControl "180+1"]
[EndTime "8:15:39 PST"]
[Termination "chito89 won by resignation"]

1. Nf3 {[%clk 0:01:17.2]} 1... Nf6 {[%clk 0:02:51.1]} 2. c4 {[%clk 0:01:17.2]}
2... e6 {[%clk 0:02:50.8]} 3. b3 {[%clk 0:01:17]} 3... d5 {[%clk 0:02:51]} 4.
Bb2 {[%clk 0:01:17.9]} 4... Be7 {[%clk 0:02:50.7]} 5. e3 {[%clk 0:01:17.4]} 5...
O-O {[%clk 0:02:50.5]} 6. Nc3 {[%clk 0:01:17.7]} 6... b6 {[%clk 0:02:45.3]} 7.
cxd5 {[%clk 0:01:17]} 7... Nxd5 {[%clk 0:02:44.4]} 8. Nxd5 {[%clk 0:01:16.6]}
8... Qxd5 {[%clk 0:02:45.2]} 9. Qc2 {[%clk 0:01:15.8]} 9... c5 {[%clk
0:02:41.9]} 10. Bd3 {[%clk 0:01:12.1]} 10... Bb7 {[%clk 0:02:34.2]} 11. Bxh7+
{[%clk 0:01:10.7]} 11... Kh8 {[%clk 0:02:33.9]} 12. Bd3 {[%clk 0:01:11.4]} 12...
Nc6 {[%clk 0:02:31.8]} 13. a3 {[%clk 0:01:08.4]} 13... Rad8 {[%clk 0:02:24.8]}
14. Bc4 {[%clk 0:01:06.7]} 14... Qd7 {[%clk 0:02:22]} 15. h4 {[%clk 0:01:05.9]}
15... Bf6 {[%clk 0:02:08.9]} 16. Ng5 {[%clk 0:01:01.1]} 16... Qxd2+ {[%clk
0:02:04.7]} 17. Qxd2 {[%clk 0:01:02]} 17... Rxd2 {[%clk 0:02:03.5]} 18. Kxd2
{[%clk 0:01:02.7]} 18... Bxb2 {[%clk 0:02:02.6]} 19. Rad1 {[%clk 0:01:03.5]}
19... Bxa3 {[%clk 0:02:01.8]} 20. Ke2 {[%clk 0:01:01.8]} 20... Ne5 {[%clk
0:01:57.6]} 21. f3 {[%clk 0:00:50.8]} 21... Nxc4 {[%clk 0:01:51.5]} 22. bxc4
{[%clk 0:00:51.7]} 22... Ba6 {[%clk 0:01:51.9]} 23. Kd3 {[%clk 0:00:47.1]} 23...
b5 {[%clk 0:01:47.7]} 24. Ra1 {[%clk 0:00:46.7]} 24... b4 {[%clk 0:01:45.4]} 25.
Rhd1 {[%clk 0:00:44.8]} 25... Rd8+ {[%clk 0:01:40.5]} 26. Kc2 {[%clk 0:00:44.6]}
26... Rxd1 {[%clk 0:01:39.9]} 27. Rxd1 {[%clk 0:00:45.5]} 27... g6 {[%clk
0:01:32.3]} 28. Kb3 {[%clk 0:00:45.5]} 28... f6 {[%clk 0:01:27]} 29. Rd8+ {[%clk
0:00:42.9]} 1-0

[Event "Early-Titled-Tuesday-Blitz-January-23-2024"]
[Site "Chess.com"]
[Date "2024.01.23"]
[Round "2"]
[White "Young_Catalan_Player09"]
[Black "Genghis_K"]
[Result "0-1"]
[WhiteElo "2563"]
[BlackElo "2851"]
[TimeControl "180+1"]
[EndTime "8:15:44 PST"]
[Termination "Genghis_K won by checkmate"]

1. Nf3 {[%clk 0:03:00.9]} 1... Nf6 {[%clk 0:02:56.1]} 2. d4 {[%clk 0:03:01]}
2... d5 {[%clk 0:02:55.9]} 3. Bf4 {[%clk 0:03:01.5]} 3... c5 {[%clk 0:02:56.1]}
4. e3 {[%clk 0:03:00.7]} 4... Nc6 {[%clk 0:02:56]} 5. Nbd2 {[%clk 0:02:56.7]}
5... e6 {[%clk 0:02:53.9]} 6. c3 {[%clk 0:02:55.8]} 6... Be7 {[%clk 0:02:54.1]}
7. Bd3 {[%clk 0:02:54.9]} 7... Nh5 {[%clk 0:02:53.9]} 8. Be5 {[%clk 0:02:52.8]}
8... f6 {[%clk 0:02:48.9]} 9. Bg3 {[%clk 0:02:51.9]} 9... Qb6 {[%clk 0:02:48.6]}
10. Qc2 {[%clk 0:02:38.5]} 10... g6 {[%clk 0:02:37.3]} 11. O-O {[%clk
0:02:35.8]} 11... Bd7 {[%clk 0:02:33.1]} 12. dxc5 {[%clk 0:02:12.4]} 12... Qxc5
{[%clk 0:02:30.2]} 13. e4 {[%clk 0:02:12.8]} 13... Nxg3 {[%clk 0:02:18.3]} 14.
hxg3 {[%clk 0:02:09.2]} 14... dxe4 {[%clk 0:02:09.9]} 15. Nxe4 {[%clk
0:02:07.5]} 15... Qb6 {[%clk 0:02:10.4]} 16. Rad1 {[%clk 0:02:04.4]} 16... O-O-O
{[%clk 0:02:09.2]} 17. Bc4 {[%clk 0:02:02.6]} 17... e5 {[%clk 0:02:07.3]} 18.
Qb3 {[%clk 0:01:50]} 18... Qxb3 {[%clk 0:02:03.1]} 19. axb3 {[%clk 0:01:47.3]}
19... Bf5 {[%clk 0:02:02.2]} 20. Nfd2 {[%clk 0:01:42.8]} 20... Na5 {[%clk
0:01:58.6]} 21. f3 {[%clk 0:01:40.8]} 21... Nxc4 {[%clk 0:01:56.1]} 22. Nxc4
{[%clk 0:01:40.2]} 22... Kc7 {[%clk 0:01:55.8]} 23. Kf2 {[%clk 0:01:39.1]} 23...
Be6 {[%clk 0:01:54.3]} 24. Ne3 {[%clk 0:01:38.1]} 24... Bxb3 {[%clk 0:01:53.2]}
25. Rxd8 {[%clk 0:01:35.4]} 25... Rxd8 {[%clk 0:01:54.1]} 26. Rh1 {[%clk
0:01:34.6]} 26... f5 {[%clk 0:01:36.3]} 27. Rxh7 {[%clk 0:01:33.9]} 27... Rd7
{[%clk 0:01:36.9]} 28. Rxe7 {[%clk 0:01:22.8]} 28... Rxe7 {[%clk 0:01:34.5]} 29.
Nc5 {[%clk 0:01:23.7]} 29... Bf7 {[%clk 0:01:32.1]} 30. b4 {[%clk 0:01:23.2]}
30... b6 {[%clk 0:01:31.5]} 31. Nd3 {[%clk 0:01:22.3]} 31... a5 {[%clk
0:01:30.6]} 32. Nc2 {[%clk 0:01:19.9]} 32... Bc4 {[%clk 0:01:23.4]} 33. Nb2
{[%clk 0:01:18.7]} 33... Bb3 {[%clk 0:01:22.7]} 34. Na1 {[%clk 0:01:17.6]} 34...
a4 {[%clk 0:01:22.1]} 35. Nxb3 {[%clk 0:01:15.9]} 35... axb3 {[%clk 0:01:21]}
36. Nc4 {[%clk 0:01:16.6]} 36... b5 {[%clk 0:01:16.7]} 37. Nd2 {[%clk
0:01:15.6]} 37... b2 {[%clk 0:01:15.9]} 38. Ke2 {[%clk 0:01:16.5]} 38... e4
{[%clk 0:01:13.5]} 39. Nb1 {[%clk 0:01:17.4]} 39... e3 {[%clk 0:01:13.2]} 40.
Na3 {[%clk 0:01:18.3]} 40... Kc6 {[%clk 0:01:12.3]} 41. c4 {[%clk 0:01:16.6]}
41... bxc4 {[%clk 0:01:11.9]} 42. Nxc4 {[%clk 0:01:16.9]} 42... b1=Q {[%clk
0:01:11.6]} 43. Nd2 {[%clk 0:01:16.2]} 43... Qc2 {[%clk 0:01:11.7]} 44. b5+
{[%clk 0:01:13.6]} 44... Kxb5 {[%clk 0:01:12.1]} 45. Kf1 {[%clk 0:01:12]} 45...
Qd1# {[%clk 0:01:11.3]} 0-1

[Event "Early-Titled-Tuesday-Blitz-January-23-2024"]
[Site "Chess.com"]
[Date "2024.01.23"]
[Round "2"]
[White "brm72"]
[Black "Matols"]
[Result "1-0"]
[WhiteElo "2689"]
[BlackElo "2383"]
[TimeControl "180+1"]
[EndTime "8:15:45 PST"]
[Termination "brm72 won by resignation"]

1. e4 {[%clk 0:03:00.9]} 1... c6 {[%clk 0:03:00.2]} 2. d4 {[%clk 0:03:00.9]}
2... d5 {[%clk 0:03:00.7]} 3. e5 {[%clk 0:03:01.5]} 3... c5 {[%clk 0:03:00.4]}
4. dxc5 {[%clk 0:03:01.4]} 4... e6 {[%clk 0:03:01]} 5. a3 {[%clk 0:03:01.2]}
5... Bxc5 {[%clk 0:03:01.3]} 6. Nf3 {[%clk 0:03:01.7]} 6... f6 {[%clk
0:02:58.6]} 7. Bd3 {[%clk 0:02:57.1]} 7... Nd7 {[%clk 0:02:52.7]} 8. Qe2 {[%clk
0:02:45.6]} 8... fxe5 {[%clk 0:02:36.7]} 9. Nxe5 {[%clk 0:02:46.5]} 9... Nxe5
{[%clk 0:02:36.5]} 10. Qxe5 {[%clk 0:02:45.5]} 10... Qf6 {[%clk 0:02:20]} 11.
Bb5+ {[%clk 0:02:44.7]} 11... Bd7 {[%clk 0:02:18.2]} 12. Bxd7+ {[%clk
0:02:44.5]} 12... Kxd7 {[%clk 0:02:19.1]} 13. Qe2 {[%clk 0:02:44.9]} 13... Ne7
{[%clk 0:02:12.7]} 14. O-O {[%clk 0:02:40]} 14... Nc6 {[%clk 0:02:03.8]} 15. Be3
{[%clk 0:02:26.4]} 15... Bxe3 {[%clk 0:01:58.2]} 16. Qxe3 {[%clk 0:02:27.3]}
16... Raf8 {[%clk 0:01:39.7]} 17. Nd2 {[%clk 0:02:23.2]} 17... Qf4 {[%clk
0:01:35.8]} 18. Qd3 {[%clk 0:02:17.3]} 18... Qd4 {[%clk 0:01:30.2]} 19. Qe2
{[%clk 0:02:15.6]} 19... Rf6 {[%clk 0:01:20.5]} 20. c4 {[%clk 0:02:07.4]} 20...
Rhf8 {[%clk 0:01:12.1]} 21. Rad1 {[%clk 0:02:06.2]} 21... Kc8 {[%clk 0:01:03.3]}
22. cxd5 {[%clk 0:02:03.7]} 22... exd5 {[%clk 0:01:02.3]} 23. b4 {[%clk
0:01:56.2]} 23... Kb8 {[%clk 0:00:51.7]} 24. Nb3 {[%clk 0:01:52.5]} 24... Qc4
{[%clk 0:00:38]} 25. Qb2 {[%clk 0:01:46]} 25... Ne7 {[%clk 0:00:11.6]} 26. Nc5
{[%clk 0:01:43.8]} 26... Ka8 {[%clk 0:00:09.8]} 27. Nd7 {[%clk 0:01:42.4]} 27...
g5 {[%clk 0:00:04.8]} 28. Nxf6 {[%clk 0:01:40.5]} 1-0

[Event "Early-Titled-Tuesday-Blitz-January-23-2024"]
[Site "Chess.com"]
[Date "2024.01.23"]
[Round "2"]
[White "TigrVShlyape"]
[Black "Sanyura"]
[Result "1/2-1/2"]
[WhiteElo "2931"]
[BlackElo "2614"]
[TimeControl "180+1"]
[EndTime "8:15:48 PST"]
[Termination "Game drawn by repetition"]

1. e4 {[%clk 0:02:56.8]} 1... c6 {[%clk 0:02:59.4]} 2. d4 {[%clk 0:02:52.2]}
2... d5 {[%clk 0:02:58.7]} 3. exd5 {[%clk 0:02:52.5]} 3... cxd5 {[%clk
0:02:58.9]} 4. Bd3 {[%clk 0:02:53.1]} 4... Nc6 {[%clk 0:02:59.1]} 5. c3 {[%clk
0:02:53.6]} 5... Qc7 {[%clk 0:02:59.6]} 6. Ne2 {[%clk 0:02:53.4]} 6... Bg4
{[%clk 0:02:59.5]} 7. O-O {[%clk 0:02:52.1]} 7... e6 {[%clk 0:02:59.4]} 8. Qe1
{[%clk 0:02:49.7]} 8... Bd6 {[%clk 0:02:55.2]} 9. f3 {[%clk 0:02:49.5]} 9... Bh5
{[%clk 0:02:54.1]} 10. Qh4 {[%clk 0:02:49]} 10... Bg6 {[%clk 0:02:26.3]} 11.
Bxg6 {[%clk 0:02:40.6]} 11... fxg6 {[%clk 0:02:27.2]} 12. Bf4 {[%clk 0:02:39.5]}
12... Nf6 {[%clk 0:02:26.6]} 13. Bxd6 {[%clk 0:02:38.1]} 13... Qxd6 {[%clk
0:02:27]} 14. Nd2 {[%clk 0:02:33.1]} 14... O-O-O {[%clk 0:02:23]} 15. Qg3 {[%clk
0:02:28.7]} 15... Qxg3 {[%clk 0:02:07.3]} 16. hxg3 {[%clk 0:02:27.5]} 16... e5
{[%clk 0:02:07.1]} 17. dxe5 {[%clk 0:02:27.3]} 17... Nxe5 {[%clk 0:02:07.2]} 18.
Nd4 {[%clk 0:02:24.7]} 18... Rhe8 {[%clk 0:02:05.4]} 19. Rab1 {[%clk 0:02:16.4]}
19... Nh5 {[%clk 0:01:53.9]} 20. Kh2 {[%clk 0:02:12.6]} 20... Nd3 {[%clk
0:01:43.4]} 21. N2b3 {[%clk 0:02:07.2]} 21... Re3 {[%clk 0:01:24.1]} 22. Rfd1
{[%clk 0:02:03.3]} 22... Ne5 {[%clk 0:00:54.2]} 23. g4 {[%clk 0:01:40.5]} 23...
Nf4 {[%clk 0:00:51.5]} 24. Kg3 {[%clk 0:01:40]} 24... g5 {[%clk 0:00:50.8]} 25.
Re1 {[%clk 0:01:33.1]} 25... Rxe1 {[%clk 0:00:47.3]} 26. Rxe1 {[%clk 0:01:32.1]}
26... Ned3 {[%clk 0:00:33.1]} 27. Re7 {[%clk 0:01:28.2]} 27... Rd7 {[%clk
0:00:33.3]} 28. Re8+ {[%clk 0:01:26.4]} 28... Rd8 {[%clk 0:00:33.7]} 29. Re7
{[%clk 0:01:18.4]} 29... Rd7 {[%clk 0:00:33.9]} 30. Re8+ {[%clk 0:01:14.4]}
30... Rd8 {[%clk 0:00:34.3]} 31. Re7 {[%clk 0:01:11.9]} 1/2-1/2

[Event "Early-Titled-Tuesday-Blitz-January-23-2024"]
[Site "Chess.com"]
[Date "2024.01.23"]
[Round "2"]
[White "colegiodemadrid"]
[Black "Larina_Maria"]
[Result "1-0"]
[WhiteElo "2472"]
[BlackElo "2173"]
[TimeControl "180+1"]
[EndTime "8:15:48 PST"]
[Termination "colegiodemadrid won by checkmate"]

1. Nf3 {[%clk 0:03:00.9]} 1... f5 {[%clk 0:02:59.2]} 2. d3 {[%clk 0:03:00]} 2...
d6 {[%clk 0:02:53.1]} 3. e4 {[%clk 0:02:58.2]} 3... e5 {[%clk 0:02:53.1]} 4.
exf5 {[%clk 0:02:56.6]} 4... Bxf5 {[%clk 0:02:52.5]} 5. d4 {[%clk 0:02:57.5]}
5... e4 {[%clk 0:02:37.1]} 6. Ng5 {[%clk 0:02:48.5]} 6... Nf6 {[%clk 0:02:31.2]}
7. Nc3 {[%clk 0:02:47]} 7... d5 {[%clk 0:02:26.5]} 8. f3 {[%clk 0:02:43.8]} 8...
Bb4 {[%clk 0:02:09.3]} 9. fxe4 {[%clk 0:02:42.8]} 9... Nxe4 {[%clk 0:02:07.5]}
10. Nxe4 {[%clk 0:02:42.7]} 10... Bxe4 {[%clk 0:02:02.9]} 11. Qh5+ {[%clk
0:02:42.3]} 11... Bg6 {[%clk 0:02:02.2]} 12. Qe5+ {[%clk 0:02:39.3]} 12... Qe7
{[%clk 0:02:01.6]} 13. Qxe7+ {[%clk 0:02:39.2]} 13... Kxe7 {[%clk 0:01:56.2]}
14. Bg5+ {[%clk 0:02:38.1]} 14... Kd6 {[%clk 0:01:41.8]} 15. Bf4+ {[%clk
0:02:36]} 15... Kd7 {[%clk 0:01:33.5]} 16. O-O-O {[%clk 0:02:35.3]} 16... Bxc3
{[%clk 0:01:33.1]} 17. bxc3 {[%clk 0:02:36.2]} 17... Rf8 {[%clk 0:01:20.4]} 18.
g3 {[%clk 0:02:36.1]} 18... c6 {[%clk 0:00:38.7]} 19. c4 {[%clk 0:02:35]} 19...
Be4 {[%clk 0:00:33.3]} 20. Rg1 {[%clk 0:02:34.4]} 20... Na6 {[%clk 0:00:30.6]}
21. cxd5 {[%clk 0:02:34.4]} 21... cxd5 {[%clk 0:00:31]} 22. Bh3+ {[%clk
0:02:27.4]} 22... Bf5 {[%clk 0:00:30.2]} 23. Bxf5+ {[%clk 0:02:25.1]} 23... Rxf5
{[%clk 0:00:31.1]} 24. a3 {[%clk 0:02:25.1]} 24... Rc8 {[%clk 0:00:30.7]} 25.
Kb2 {[%clk 0:02:23.5]} 25... g5 {[%clk 0:00:30.3]} 26. Be5 {[%clk 0:02:22]}
26... Rf2 {[%clk 0:00:30]} 27. Rc1 {[%clk 0:02:22]} 27... Nc7 {[%clk 0:00:28.2]}
28. Rgf1 {[%clk 0:02:20.5]} 28... Rxh2 {[%clk 0:00:24.8]} 29. Rf7+ {[%clk
0:02:19.5]} 29... Kd8 {[%clk 0:00:24.2]} 30. Bf6+ {[%clk 0:02:13.5]} 30... Ke8
{[%clk 0:00:23.6]} 31. Re7+ {[%clk 0:02:13.7]} 31... Kf8 {[%clk 0:00:23.1]} 32.
Rf1 {[%clk 0:02:12.1]} 32... Ne6 {[%clk 0:00:16.6]} 33. Rxe6 {[%clk 0:01:53.8]}
33... Rcxc2+ {[%clk 0:00:16.9]} 34. Kb3 {[%clk 0:01:54.2]} 34... Rb2+ {[%clk
0:00:16.7]} 35. Ka4 {[%clk 0:01:54.8]} 35... b5+ {[%clk 0:00:15.7]} 36. Ka5
{[%clk 0:01:54.8]} 36... Ra2 {[%clk 0:00:13.3]} 37. Be7+ {[%clk 0:01:53]} 37...
Ke8 {[%clk 0:00:13.8]} 38. Bc5+ {[%clk 0:01:53]} 38... Kd7 {[%clk 0:00:13.7]}
39. Re7+ {[%clk 0:01:53.3]} 39... Kd8 {[%clk 0:00:13.8]} 40. Rf8# {[%clk
0:01:53.2]} 1-0

[Event "Early-Titled-Tuesday-Blitz-January-23-2024"]
[Site "Chess.com"]
[Date "2024.01.23"]
[Round "2"]
[White "doctorcristian"]
[Black "gmcorrales"]
[Result "0-1"]
[WhiteElo "2607"]
[BlackElo "2942"]
[TimeControl "180+1"]
[EndTime "8:15:49 PST"]
[Termination "gmcorrales won by resignation"]

1. d4 {[%clk 0:03:00.9]} 1... Nf6 {[%clk 0:02:59.9]} 2. Nc3 {[%clk 0:02:59.6]}
2... d5 {[%clk 0:02:59.8]} 3. Bf4 {[%clk 0:03:00.2]} 3... c6 {[%clk 0:02:59.8]}
4. e3 {[%clk 0:03:00.4]} 4... Nbd7 {[%clk 0:02:57.1]} 5. h3 {[%clk 0:02:59.1]}
5... b5 {[%clk 0:02:56.5]} 6. Nf3 {[%clk 0:02:58.6]} 6... Nb6 {[%clk 0:02:56.2]}
7. Bd3 {[%clk 0:02:56.6]} 7... Bb7 {[%clk 0:02:55.3]} 8. a4 {[%clk 0:02:53.8]}
8... b4 {[%clk 0:02:55.3]} 9. Nb1 {[%clk 0:02:52.3]} 9... a5 {[%clk 0:02:55.6]}
10. Nbd2 {[%clk 0:02:52.4]} 10... e6 {[%clk 0:02:55.4]} 11. Nb3 {[%clk
0:02:52.5]} 11... Be7 {[%clk 0:02:54.7]} 12. O-O {[%clk 0:02:52]} 12... O-O
{[%clk 0:02:54.8]} 13. c3 {[%clk 0:02:51.9]} 13... Nbd7 {[%clk 0:02:52.1]} 14.
c4 {[%clk 0:02:49.5]} 14... c5 {[%clk 0:02:51.6]} 15. dxc5 {[%clk 0:02:47.9]}
15... Nxc5 {[%clk 0:02:51.9]} 16. Nxc5 {[%clk 0:02:48.2]} 16... Bxc5 {[%clk
0:02:52.8]} 17. Rc1 {[%clk 0:02:47.1]} 17... dxc4 {[%clk 0:02:49.7]} 18. Rxc4
{[%clk 0:02:46.5]} 18... Bxf3 {[%clk 0:02:44.7]} 19. Qxf3 {[%clk 0:02:34.6]}
19... Qxd3 {[%clk 0:02:44.1]} 20. Rxc5 {[%clk 0:02:34.9]} 20... Ne4 {[%clk
0:02:14.4]} 21. Rd1 {[%clk 0:02:13]} 21... Nxc5 {[%clk 0:01:47.8]} 22. Rxd3
{[%clk 0:02:12.1]} 22... Nxd3 {[%clk 0:01:48.7]} 23. Bd6 {[%clk 0:01:54.8]}
23... Rfc8 {[%clk 0:01:39.7]} 24. Kh2 {[%clk 0:01:48.1]} 24... Nxb2 {[%clk
0:01:38.1]} 25. Be5 {[%clk 0:01:37.8]} 25... Nc4 {[%clk 0:01:37.9]} 26. Bxg7
{[%clk 0:01:24.4]} 26... Kxg7 {[%clk 0:01:37.7]} 27. Qg4+ {[%clk 0:01:24.6]}
27... Kf8 {[%clk 0:01:37.5]} 28. Qh4 {[%clk 0:01:24.6]} 28... b3 {[%clk
0:01:32.9]} 29. Qh6+ {[%clk 0:01:23.2]} 29... Ke8 {[%clk 0:01:32.9]} 30. Qxh7
{[%clk 0:01:16.7]} 30... b2 {[%clk 0:01:30.4]} 31. Qh8+ {[%clk 0:01:14.6]} 31...
Ke7 {[%clk 0:01:28.5]} 32. Qh4+ {[%clk 0:01:13.9]} 32... f6 {[%clk 0:01:26.1]}
33. Qh7+ {[%clk 0:01:13.1]} 33... Kd6 {[%clk 0:01:24.7]} 34. Qd3+ {[%clk
0:01:13]} 34... Kc5 {[%clk 0:01:25.2]} 35. Qd4+ {[%clk 0:01:12.4]} 35... Kb4
{[%clk 0:01:25]} 36. Qe4 {[%clk 0:01:04.9]} 36... Rab8 {[%clk 0:01:23.8]} 37.
Qb1 {[%clk 0:00:57.6]} 37... Kc3 {[%clk 0:01:17.5]} 38. Qe1+ {[%clk 0:00:57]}
38... Nd2 {[%clk 0:01:17.8]} 39. e4 {[%clk 0:00:55]} 39... b1=Q {[%clk
0:01:17.5]} 40. Qe3+ {[%clk 0:00:55.4]} 40... Qd3 {[%clk 0:01:17.6]} 41. Qe1
{[%clk 0:00:54.4]} 41... Rb1 {[%clk 0:01:16.9]} 0-1

[Event "Early-Titled-Tuesday-Blitz-January-23-2024"]
[Site "Chess.com"]
[Date "2024.01.23"]
[Round "2"]
[White "AsterPhoenix"]
[Black "alexrustemov"]
[Result "0-1"]
[WhiteElo "2584"]
[BlackElo "2885"]
[TimeControl "180+1"]
[EndTime "8:15:51 PST"]
[Termination "alexrustemov won by resignation"]

1. e4 {[%clk 0:03:00.9]} 1... e6 {[%clk 0:03:00]} 2. d4 {[%clk 0:03:00.2]} 2...
d5 {[%clk 0:03:00.3]} 3. Nc3 {[%clk 0:03:00.8]} 3... dxe4 {[%clk 0:03:00.5]} 4.
Nxe4 {[%clk 0:03:00.9]} 4... Bd7 {[%clk 0:03:01]} 5. Nf3 {[%clk 0:02:52.3]} 5...
Bc6 {[%clk 0:03:01.4]} 6. Bd3 {[%clk 0:02:49.1]} 6... Nd7 {[%clk 0:03:01.7]} 7.
c3 {[%clk 0:02:46.1]} 7... Ngf6 {[%clk 0:03:01.7]} 8. Ng3 {[%clk 0:02:43.4]}
8... Be7 {[%clk 0:03:01.2]} 9. O-O {[%clk 0:02:37.9]} 9... O-O {[%clk
0:03:01.6]} 10. Re1 {[%clk 0:02:38.3]} 10... b6 {[%clk 0:02:59]} 11. a4 {[%clk
0:02:36]} 11... Bb7 {[%clk 0:02:56.7]} 12. h3 {[%clk 0:02:23]} 12... c5 {[%clk
0:02:56.3]} 13. a5 {[%clk 0:02:21]} 13... bxa5 {[%clk 0:02:50.2]} 14. Bb1 {[%clk
0:01:59.3]} 14... Bxf3 {[%clk 0:02:42.3]} 15. Qxf3 {[%clk 0:01:59.3]} 15... cxd4
{[%clk 0:02:42.8]} 16. cxd4 {[%clk 0:02:00.2]} 16... Nd5 {[%clk 0:02:28.6]} 17.
Qd3 {[%clk 0:01:28.2]} 17... N7f6 {[%clk 0:02:27.1]} 18. Bd2 {[%clk 0:01:25.8]}
18... Bb4 {[%clk 0:02:26]} 19. Ne4 {[%clk 0:01:17.6]} 19... Bxd2 {[%clk
0:02:22]} 20. Qxd2 {[%clk 0:01:18.5]} 20... Rb8 {[%clk 0:02:18.1]} 21. Bd3
{[%clk 0:00:41]} 21... Rb4 {[%clk 0:02:12.9]} 22. Bf1 {[%clk 0:00:37.6]} 22...
Qb6 {[%clk 0:02:11.1]} 23. Nxf6+ {[%clk 0:00:35.6]} 23... Nxf6 {[%clk
0:02:10.3]} 24. Re5 {[%clk 0:00:34.2]} 24... a4 {[%clk 0:02:03.1]} 25. Qc3
{[%clk 0:00:21]} 25... Nd5 {[%clk 0:01:55.7]} 26. Qc5 {[%clk 0:00:17.1]} 26...
Rxd4 {[%clk 0:01:52.9]} 27. Qc2 {[%clk 0:00:11]} 27... g6 {[%clk 0:01:36.4]} 28.
Rxa4 {[%clk 0:00:09.5]} 28... Rxa4 {[%clk 0:01:35.3]} 29. Qxa4 {[%clk
0:00:10.4]} 29... Qxb2 {[%clk 0:01:35.1]} 30. Qxa7 {[%clk 0:00:10.1]} 30... Qxe5
{[%clk 0:01:34.4]} 0-1

[Event "Early-Titled-Tuesday-Blitz-January-23-2024"]
[Site "Chess.com"]
[Date "2024.01.23"]
[Round "2"]
[White "BJthechessgod"]
[Black "ContrVersia"]
[Result "0-1"]
[WhiteElo "2420"]
[BlackElo "2839"]
[TimeControl "180+1"]
[EndTime "8:15:52 PST"]
[Termination "ContrVersia won on time"]

1. e4 {[%clk 0:02:56.4]} 1... d6 {[%clk 0:02:59.7]} 2. d4 {[%clk 0:02:56.3]}
2... g6 {[%clk 0:02:59.7]} 3. Nc3 {[%clk 0:02:55.1]} 3... Bg7 {[%clk 0:02:59.5]}
4. Be3 {[%clk 0:02:54.6]} 4... c6 {[%clk 0:02:59.1]} 5. Qd2 {[%clk 0:02:54.8]}
5... Nf6 {[%clk 0:02:57.5]} 6. Bh6 {[%clk 0:02:52]} 6... Bxh6 {[%clk 0:02:56.1]}
7. Qxh6 {[%clk 0:02:52.2]} 7... e5 {[%clk 0:02:56.9]} 8. O-O-O {[%clk
0:02:49.9]} 8... Qe7 {[%clk 0:02:54.7]} 9. f3 {[%clk 0:02:35.6]} 9... b5 {[%clk
0:02:50.7]} 10. g4 {[%clk 0:02:05.7]} 10... a6 {[%clk 0:02:37.3]} 11. h4 {[%clk
0:01:53.9]} 11... Nbd7 {[%clk 0:02:36.7]} 12. Nh3 {[%clk 0:01:36]} 12... Nb6
{[%clk 0:02:27.5]} 13. h5 {[%clk 0:01:16.4]} 13... Bb7 {[%clk 0:02:05.4]} 14.
hxg6 {[%clk 0:01:07.4]} 14... fxg6 {[%clk 0:02:04.6]} 15. dxe5 {[%clk 0:01:05]}
15... dxe5 {[%clk 0:02:04.7]} 16. Ng5 {[%clk 0:00:52.2]} 16... Nbd7 {[%clk
0:01:50]} 17. Kb1 {[%clk 0:00:33.5]} 17... O-O-O {[%clk 0:01:49.5]} 18. Qh2
{[%clk 0:00:22.4]} 18... h5 {[%clk 0:01:35.8]} 19. gxh5 {[%clk 0:00:19.3]} 19...
Rxh5 {[%clk 0:01:36]} 20. Bh3 {[%clk 0:00:20.2]} 20... Rxg5 {[%clk 0:01:35.4]}
21. Qd2 {[%clk 0:00:17.2]} 21... Rh5 {[%clk 0:01:34.6]} 22. Ne2 {[%clk
0:00:11.9]} 22... Kc7 {[%clk 0:01:27.2]} 23. Qa5+ {[%clk 0:00:07.6]} 23... Nb6
{[%clk 0:01:27.2]} 24. Rxd8 {[%clk 0:00:01.8]} 24... Qxd8 {[%clk 0:01:28.1]} 0-1

[Event "Early-Titled-Tuesday-Blitz-January-23-2024"]
[Site "Chess.com"]
[Date "2024.01.23"]
[Round "2"]
[White "quvnoq_muxlis"]
[Black "esrosenberg"]
[Result "1-0"]
[WhiteElo "2666"]
[BlackElo "2353"]
[TimeControl "180+1"]
[EndTime "8:15:53 PST"]
[Termination "quvnoq_muxlis won by resignation"]

1. e4 {[%clk 0:03:00.9]} 1... g6 {[%clk 0:02:59.7]} 2. d4 {[%clk 0:03:01.1]}
2... Bg7 {[%clk 0:02:59.8]} 3. Nc3 {[%clk 0:03:01.8]} 3... d5 {[%clk 0:02:58.5]}
4. Nxd5 {[%clk 0:02:57.9]} 4... c6 {[%clk 0:02:55]} 5. Nc3 {[%clk 0:02:58.5]}
5... Qxd4 {[%clk 0:02:55.4]} 6. Qxd4 {[%clk 0:02:57.8]} 6... Bxd4 {[%clk
0:02:55]} 7. Nge2 {[%clk 0:02:58.5]} 7... Bg7 {[%clk 0:02:55]} 8. Be3 {[%clk
0:02:59.1]} 8... Nf6 {[%clk 0:02:30.3]} 9. f3 {[%clk 0:02:59.2]} 9... O-O {[%clk
0:02:28.5]} 10. O-O-O {[%clk 0:02:57.6]} 10... Nbd7 {[%clk 0:02:25.1]} 11. Nf4
{[%clk 0:02:56]} 11... Ne5 {[%clk 0:02:22.4]} 12. Kb1 {[%clk 0:02:52.8]} 12...
a5 {[%clk 0:02:21.7]} 13. Na4 {[%clk 0:02:47.6]} 13... b5 {[%clk 0:02:14.4]} 14.
Nb6 {[%clk 0:02:37.3]} 14... Rb8 {[%clk 0:02:14.4]} 15. a4 {[%clk 0:02:33.8]}
15... bxa4 {[%clk 0:01:58.9]} 16. Nxa4 {[%clk 0:02:30.7]} 16... g5 {[%clk
0:01:55.8]} 17. Nd3 {[%clk 0:02:27.1]} 17... Nc4 {[%clk 0:01:54.5]} 18. Bxg5
{[%clk 0:02:19.7]} 18... Rb5 {[%clk 0:01:22.9]} 19. Ndc5 {[%clk 0:01:54.5]}
19... Rb4 {[%clk 0:00:54.7]} 20. c3 {[%clk 0:01:50.1]} 20... Rxa4 {[%clk
0:00:43]} 21. Nxa4 {[%clk 0:01:47.7]} 21... Ne5 {[%clk 0:00:40.1]} 22. Nc5
{[%clk 0:01:43]} 22... Re8 {[%clk 0:00:27.4]} 23. Bf4 {[%clk 0:01:38.9]} 23...
Ned7 {[%clk 0:00:27.3]} 24. Nxd7 {[%clk 0:01:37.9]} 24... Bxd7 {[%clk
0:00:27.4]} 25. Bc4 {[%clk 0:01:38.1]} 25... c5 {[%clk 0:00:18.4]} 26. Rxd7
{[%clk 0:01:25]} 26... Nxd7 {[%clk 0:00:18.3]} 27. Bb5 {[%clk 0:01:25.4]} 27...
Rd8 {[%clk 0:00:16.5]} 28. Rd1 {[%clk 0:01:24.9]} 1-0